Cogmind - Beta 14 @@@ ROGUE MODE // 2024.08.16 @ 23:03:15 Player: human Result: Destroyed by Y-45 Defender with Heavy Assault Rifle Performance ------------- Evolutions (1) 500 Regions Visited (2) 400 Robots Destroyed (11) 55 Value Destroyed (429) 429 Prototype IDs (1) 20 Alien Tech Used (0) 0 Bonus (0) 0 TOTAL SCORE: 1404 Bonus ------- None Cogmind --------- Core Integrity 0/400 Matter 300/300 Energy 100/100 System Corruption 0% Temperature Cool (15) Movement Core (1400) Ox27 Location -9/Materials Parts ------- > --- POWER (1) -------- (None) > --- PROPULSION (3) --- (None) > --- UTILITY (3) ------ Huge Storage Unit Targeting Computer Improved Targeting Computer > --- WEAPON (2) ------- Mace > --- INVENTORY (25) --- Ion Engine Ion Engine Armored Wheel Heat Sink High-capacity Matter Pod (200) Terrain Scanner Targeting Computer ECM Suite ECM Suite EM Pulse Gun EM Pulse Gun Improved Medium Laser Assault Rifle Peak State ------------ > --- POWER ------------ Ion Engine > --- PROPULSION ------- Armored Wheel Armored Wheel Armored Wheel > --- UTILITY ---------- Huge Storage Unit Improved Targeting Computer ECM Suite > --- WEAPON ----------- Improved Medium Laser Improved Medium Laser > --- INVENTORY -------- Ion Engine Ion Engine Armored Wheel High-capacity Matter Pod Targeting Computer Targeting Computer ECM Suite EM Pulse Gun EM Pulse Gun Assault Rifle Mace [Rating: 18] Favorites ----------- Power Ion Engine Engine Ion Engine Propulsion Armored Wheel Wheel Armored Wheel Utility Huge Storage Unit Device ECM Suite Storage Huge Storage Unit Processor Improved Targeting Computer Weapon EM Pulse Gun Energy Gun EM Pulse Gun Impact Weapon Mace Build | -11 -10 -9 ------- Run | Yrd Mat Mat Slots Evolved 2 | . . 2 Power . | . . . Propulsion 1 | . . 1 Utility 1 | . . 1 Weapon . | . . . Parts Attached 22 | 7 3 12 Power 1 | 1 . . Engine 1 | 1 . . Core . | . . . Reactor . | . . . Propulsion 6 | 3 . 3 Treads . | . . . Leg . | . . . Wheel 6 | 3 . 3 Hover . | . . . Flight . | . . . Utility 10 | 1 3 6 Device 3 | . 2 1 Storage 4 | 1 1 2 Processor 3 | . . 3 Hackware . | . . . Protection . | . . . Artifact . | . . . Weapon 5 | 2 . 3 Energy Gun 4 | 2 . 2 Energy Cannon . | . . . Ballistic Gun . | . . . Ballistic Cannon . | . . . Launcher . | . . . Special Weapon . | . . . Impact Weapon 1 | . . 1 Slashing Weapon . | . . . Piercing Weapon . | . . . Special Melee Weapon . | . . . Unidentified Prototypes 1 | . . 1 Parts Lost 5 | . . 5 Power 1 | . . 1 Propulsion 3 | . . 3 Utility . | . . . Weapon 1 | . . 1 Highest Loss Streak 5 | . . 5 To Critical Strikes . | . . . Average Slot Usage (%) 96 | . 93 97 Engine 11 | . 14 10 Wheel 30 | . 28 31 Device 8 | . 11 6 Storage 11 | . 10 11 Processor 9 | . . 14 Energy Gun 21 | . 28 17 Impact Weapon 2 | . . 3 Peak Build Rating 18 | 6 7 18 Average Rating 11 | 3 6 15 On Entrance 4 | . 6 7 Naked Turns . | . . . Heaviest Build 95 | 14 94 95 Greatest Support 44 | 32 32 44 Greatest Overweight (x) 6 | . 2 6 Average Overweight (x) 1 | . 1 1 Largest Inventory Capacity 25 | 8 25 25 Average Capacity 20 | 6 17 24 Most Carried 13 | 3 4 13 Average Carried 7 | 1 3 10 Final Capacity 25 | 8 5 25 Final Carried 13 | 2 4 13 Class Distribution -------------------- 100% | Mutant Dominant Class ---------------- Mutant | -10/Materials Mutant | -9/Materials Resources | -11 -10 -9 ----------- Run | Yrd Mat Mat Matter Collected 620 | 225 . 395 Remotely . | . . . Salvage Created 507 | . 50 457 Parts 24 | . 3 21 Haulers Intercepted . | . . . Recyclers Shooed . | . . . Parts Field Recycled . | . . . Retrieved Matter . | . . . Parts Self-Destructed . | . . . Prevented . | . . . Kills | -11 -10 -9 ------- Run | Yrd Mat Mat Combat Hostiles Destroyed 11 | . 1 10 Melee 1 | . . 1 Guns 8 | . 1 7 Classes Destroyed 2 | . 1 1 Grunt 6 | . 1 5 Sentry 5 | . . 5 Best Kill Streak 4 | . 1 4 Combat Bots Only 4 | . 1 4 Max Kills in Single Turn 2 | . 1 2 Gunslinging 1 | . . 1 Exploded . | . . . Melee 1 | . . 1 Uniques/NPCs Destroyed . | . . . Combat | -11 -10 -9 -------- Run | Yrd Mat Mat Hostile Shots Fired 113 | . 4 109 Missed 32 | . 1 31 Damage Taken 1150 | . 35 1115 Core 404 | . . 404 Absorbed by Shields . | . . . Core Remaining (%) 100 | 100 100 . Volleys Fired 24 | . 4 20 Largest 2 | . 2 2 Hottest 112 | . 80 112 Shots Fired 40 | . 8 32 Gun 40 | . 8 32 Cannon . | . . . Launcher . | . . . Special . | . . . Kinetic . | . . . Thermal 30 | . . 30 Explosive . | . . . Electromagnetic 10 | . 8 2 Robot Hit Streak 12 | . 2 12 Robot Miss Streak 5 | . 5 2 Penetration Max . | . . . Secondary Targets 2 | . . 2 Max Gunslinging Chain 1 | . . 1 Shots Hit Robots 50 | . 2 48 Core Hits 14 | . 2 12 Critical Kills . | . . . Critical Parts Destroyed 4 | . . 4 Critical Strikes 5 | . . 5 Burn 1 | . . 1 Smash 4 | . . 4 Melee Attacks 22 | . . 22 Impact 22 | . . 22 Slashing . | . . . Piercing . | . . . Sneak Attacks . | . . . Combat Hostiles . | . . . Follow-up Attacks . | . . . Damage Inflicted 987 | . 26 961 Guns 460 | . 26 434 Cannons . | . . . Explosions . | . . . Melee 527 | . . 527 Ramming . | . . . Kinetic . | . . . Thermal 419 | . . 419 Explosive . | . . . Electromagnetic 41 | . 26 15 Impact 527 | . . 527 Slashing . | . . . Piercing . | . . . Highest Corruption . | . . . Average Corruption . | . . . Corruption Purged . | . . . Corruption Blocked . | . . . Overload Shots . | . . . Overflow Damage 114 | . . 114 Projectiles . | . . . Explosions . | . . . Melee 114 | . . 114 Knockbacks 2 | . . 2 Impact 2 | . . 2 Kinetic . | . . . Secondary . | . . . Self-Inflicted Damage . | . . . Shots . | . . . Rammed . | . . . Targets Rammed . | . . . Kicked . | . . . Crushed . | . . . Highest Temperature 246 | . 66 246 Average Temperature 87 | . 31 98 Received Heat Transfer 444 | . 18 426 Siege Activations . | . . . Robots Corrupted 2 | . . 2 Combat Hostiles 2 | . . 2 Parts Fried 2 | . . 2 Impact Corruptions 5 | . . 5 Robots Melted . | . . . Combat Hostiles . | . . . Parts Melted 3 | . . 3 Heat Transferred 999 | . . 999 Parts Sabotaged . | . . . Parts Stolen . | . . . Parts Stripped . | . . . Power Chain Reactions . | . . . Alert | -11 -10 -9 ------- Run | Yrd Mat Mat Peak Influence 278 | . 73 278 Initial 30 | . . 30 Average 93 | . 38 135 Maximum Alert Level 1 | . . 1 Low Security (%) 88 | 100 100 80 Level 1 11 | . . 19 Level 2 . | . . . Level 3 . | . . . Level 4 . | . . . Level 5 . | . . . High Security . | . . . Max Security . | . . . Squads Dispatched 4 | . 1 3 Investigation 2 | . . 2 Extermination . | . . . Reinforcement 2 | . 1 1 Assault . | . . . Garrison . | . . . Intercept . | . . . Searches Triggered . | . . . Construction Impeded . | . . . Haulers Reinforced . | . . . Active Scanning Responses . | . . . Cargo Convoy Interrupts . | . . . Stealth | -11 -10 -9 --------- Run | Yrd Mat Mat Distress Signals . | . . . Communications Jammed . | . . . Distress Signals . | . . . Times Spotted 22 | . 2 20 Peak Tracking Total 8 | . 1 8 Tactical Retreats 1 | . . 1 Traps | -11 -10 -9 ------- Run | Yrd Mat Mat Traps Triggered . | . . . Indirectly . | . . . Trap Hack Attempts . | . . . Triggered . | . . . Disarmed . | . . . Reprogrammed . | . . . Reused . | . . . Traps Extracted . | . . . Installed . | . . . Triggered . | . . . Machines | -11 -10 -9 ---------- Run | Yrd Mat Mat Machines Disabled . | . . . Max in Single Turn . | . . . Machines Repaired . | . . . Machines Dismantled . | . . . Machines Sabotaged . | . . . Overloaded Fab Kills . | . . . Hacking | -11 -10 -9 --------- Run | Yrd Mat Mat Machines Accessed 6 | . 3 3 Terminals 4 | . 2 2 Fabricators . | . . . Repair Stations . | . . . Recycling Units 2 | . 1 1 Scanalyzers . | . . . Garrison Access . | . . . Total Hacks 20 | . 9 11 Successful 7 | . 3 4 Failed 13 | . 6 7 Catastrophic 3 | . . 3 Database Lockouts . | . . . Manual 2 | . . 2 Terminals 17 | . 8 9 Fabricators . | . . . Repair Stations . | . . . Recycling Units 3 | . 1 2 Scanalyzers . | . . . Garrison Access . | . . . Terminal Hacks 6 | . 2 4 Record 3 | . . 3 Robot Analysis 1 | . . 1 Emergency Access Points 1 | . 1 . Locate Traps 1 | . 1 . Fabricator Hacks . | . . . Repair Station Hacks . | . . . Recycling Unit Hacks 1 | . 1 . Retrieve Components 1 | . 1 . Scanalyzer . | . . . Garrison Access Hacks . | . . . Unauthorized Hacks . | . . . Terminals . | . . . Fabricators . | . . . Repair Stations . | . . . Recycling Units . | . . . Scanalyzers . | . . . Garrison Access . | . . . Data Cores Recovered . | . . . Used . | . . . Hacking Detections 5 | . 2 3 Full Trace Events 2 | . . 2 Feedback Events . | . . . Feedback Blocked . | . . . Robot Schematics Acquired . | . . . Robots Built . | . . . Authchips . | . . . Time . | . . . Total Robot Build Rating . | . . . Part Schematics Acquired . | . . . Parts Built . | . . . Authchips . | . . . Time . | . . . Total Part Build Rating . | . . . Parts Repaired . | . . . Time . | . . . Parts Recycled . | . . . Recycled Matter . | . . . Retrieved Matter . | . . . Retrieved Components 3 | . 3 . Parts Scanalyzed . | . . . Part Schematics Acquired . | . . . Parts Damaged . | . . . Bothacking | -11 -10 -9 ------------ Run | Yrd Mat Mat Used RIF Installer . | . . . Robots Hacked . | . . . Non-combat . | . . . Combat . | . . . Robot Hacks Applied . | . . . Relay Couplers Released . | . . . Fabnet Peak Effective % . | . . . Robots Rewired . | . . . Allies Hacked . | . . . Hacks Repelled . | . . . Allies | -11 -10 -9 -------- Run | Yrd Mat Mat Total Allies . | . . . Largest Group . | . . . Highest-Rated Group . | . . . Highest-Rated Ally . | . . . Total Orders . | . . . Ally Attacks . | . . . Total Damage . | . . . Kills . | . . . Allies Corrupted . | . . . Allies Melted . | . . . Intel | -11 -10 -9 ------- Run | Yrd Mat Mat Robot Analysis Total 1 | . . 1 Derelict Logs Recovered . | . . . Drone Launches . | . . . Drone Recoveries . | . . . Exploration | -11 -10 -9 ------------- Run | Yrd Mat Mat Turns Passed 825 | 68 265 492 Spaces Moved 527 | 63 200 264 Core 25 | 25 . . Treads . | . . . Legs . | . . . Wheels 502 | 38 200 264 Hover . | . . . Flight . | . . . Fastest Speed 50 | 50 100 100 Average Speed 114 | 80 117 119 Slowest Speed 180 | 100 130 180 Overloaded Moves . | . . . Propulsion Burnouts . | . . . Robots Hopped . | . . . Cave-ins Triggered . | . . . Exploration Rate (%) 20 | 5 33 22 Regions Visited 2 Branch Regions . Pre-discovered Areas . | . . . Known Exits Taken . | . . . Unknown Exits Taken 2 | 1 1 . Scrap Searched . | . . . Spaces Dug . | . . . Terrain Destroyed . | . . . Melee . | . . . Projectile . | . . . AOE . | . . . Terrain Rammed . | . . . Walls Destroyed . | . . . Machines Disabled . | . . . Actions | -11 -10 -9 --------- Run | Yrd Mat Mat Total 666 | 79 221 366 Wait 41 | 2 9 30 Move 525 | 62 199 264 Hop . | . . . Pick Up 27 | 8 4 15 Fast Attach . | . . . Attach 11 | 6 2 3 Detach 1 | . 1 . Swap 11 | 1 1 9 Drop 4 | . 1 3 Fire 24 | . 4 20 Melee 22 | . . 22 Ram . | . . . Kick . | . . . Crush . | . . . Escape Stasis . | . . . Rewire . | . . . Trap . | . . . Miscellaneous . | . . . Route ------- -11/Scrapyard -10/Materials -9/Materials History --------- Turn | Location | Event 33 | -11/Scrapyard | Discovered new exit (range 16) 69 | -11/Scrapyard | Entered Materials 271 | -10/Materials | Discovered new exit (range 5) 312 | -10/Materials | Build established: Mutant 334 | -10/Materials | Entered another Materials area 334 | -9/Materials | Evolved 2 slots: Propulsion x1, Utility x1 811 | -9/Materials | Core integrity fell below 50% 824 | -9/Materials | Core integrity fell below 20% 826 | -9/Materials | Destroyed by Y-45 Defender with Heavy Assault Rifle Last Messages --------------- 00783_ Lgt. Treads fried. 00783_ Heat Sink fried. 00786_ Acquired 30 matter. 00799_ K-01 Serf collects debris. 00805_ G-34 Mercenary suffers critical hit (Smash). 00805_ Destroyed Ion Engine. 00805_ G-34 Mercenary system corrupted by crushing effect. 00805_ G-34 Mercenary knocked back. 00805_ Imp. Medium Laser destroyed. 00805_ Arm. Wheel destroyed. 00809_ K-01 Serf collects debris. 00811_ G-47 Trooper knocked back. 00811_ Arm. Wheel destroyed. 00811_ Ion Engine destroyed. 00812_ K-01 Serf collects debris. 00817_ G-34 Mercenary misfires. 00818_ Arm. Wheel destroyed. 00823_ Y-45 Defender destroyed. Map ----- +----------------------------------------------------+ | ?????????????????????????????????????????????????? | | ?????????????????????????????????????????????????? | | ?????????????????????????????????????????????????? | | ?????????????????????????????????????????????????? | | ?????????????????????????????????????????????????? | | ?????????????????????????????????????????????????? | | ?????????????????????????????????????????????????? | | ?????????????????????????????????????????????????? | | ?????????????????????????????????????????????????? | | ?????????????????????????????????????????????????? | | ?????????????????????????????????????????????????? | | ?????????????????????????????????????????????????? | | ?????????????????????????????????????????????????? | | ?????????????????????????????????????????????????? | | ?????????????????????????????????????????????????? | | ?????????????????????????????????????????????????? | | ???????????????????????????????????????????????### | | ??????????????????????????????????????????###### # | | ??????????????????????????????????????????# # | | ???????????????????????????????############ "" # | | ???????????????????????????????# ##* T # | | ??????????? #####????????####### """ """ ## "" # | | ??????????? ####### # "Y" """ ## # | | ?????????????# ug g w # """ # "" # | | ?????????????# g Y %* %+ ! ## "" # | | ?????????????# g @ # !! ## """ # | | ?????????????# k### ### # ! ## # | | ?????????????????????????####### ## """ # | | ???????????????????????????????####+####### """ # | | ??????????????????????????????????# #?????# """ # | | ????????????????????????????????### ###???# # | | ????????????????????????????????# ########+### | | ????????????????????????????????# ## | | ????????????????????????????????# = " | | ????????????????????????????????# = ## | | ????????????????????????????????# ####### ## | | ????????????????????????????????###+###?????# ## | | ????????????????????????????????????????????# ## | | ????????????????????????????????????????????# ## | | ????????????????????????????????????????????# | | ????????????????????????????????????????????# | | ????????????????????????????????????????????# | | ????????????????????????????????????????????####+# | | ?????????????????????????????????????????????# | | ?????????????????????????????????????????????# | | ?????????????????????????????????????????????# | | ?????????????????????????????????????????????# | | ?????????????????????????????????????????????# | | ??????????????????????????????????????######## | | ??????????????????????????????????????# ###### | +----------------------------------------------------+ Best States ------------- Heat Dissipation 28 Energy Generation 10 Energy Capacity 250 Matter Stores 349 Matter Capacity 500 Sight Range 16 Terrain Scan Density 10 ECM Strength 2 Evasion (%) 50 Targeting Accuracy 11 Item Schematics ----------------- None Robot Schematics ------------------ None Fabricated ------------ Nothing Alien Tech Used ----------------- None Achievements -------------- None Challenges ------------ None Game ------ Seed CloakCloakShockpuncher Manual? 0 Play Time 00:33:35 Cumulative 9.8 hours Start 2024.08.16 @ 22:21:44 End 2024.08.16 @ 23:03:15 Sessions 1 Manual Loads 0 Difficulty Rogue Special Mode None Game No. 6 Rogue 6 Adventurer 0 Explorer 0 Win Type - Total 0 Types 0/0/0/0/0/0/0/0/0 Lore% 1 Gallery% 12 Achievement% 9 Wizard Run 0 Options --------- Layout 1 ASCII 0 Keyboard 0 Movement Arrows Keybinds 0 Fullscreen 1 Font 24/Smallcaps Map View 50x35 Zoom Use 6% Tactical HUD 1 Map Filters NONE Filters NONE Steam 1 RUN: ec024471-3964-4918-b25f-a70cbfe8af16